bitfinex-derivatives/quotes_ETHF0:USTF0_20250110
["timestamp","ask_amount","ask_price","bid_price","bid_amount"]
[1736470311747,0.30983,3227.7,3227.5,0.30984]
[1736470311947,0.30983,3227.7,3227.3,2.44660996]
[1736470312248,3.79737865,3227.9,3227.7,0.30982]
[1736470312446,3.2078,3227.9,3227.7,0.30982]
[1736470312650,0.30983,3227.8,3227.6,0.30983]
[1736470313243,0.89940865,3227.8,3227.6,0.30983]
[1736470313735,0.30983,3227.7,3227.6,0.30983]
[1736470313941,0.58957865,3227.8,3227.4,40.8]
[1736470314143,3.79737865,3227.9,3227.8,0.30982]
[1736470315453,0.58957865,3227.9,3227.8,0.30982]
[1736470315750,0.58957865,3228.1,3228.0,0.3098]
[1736470317650,0.00137054,3228.2,3228.1,0.30979]
[1736470317851,0.00137054,3228.2,3227.9,2.44660996]
[1736470318151,0.00137054,3228.2,3228.1,0.30979]
[1736470322653,3.2078,3228.6,3228.1,8.51759]
[1736470322854,3.2078,3228.6,3228.5,2.75635996]
[1736470323053,3.2078,3228.6,3228.5,43.55635996]
[1736470323356,0.4514,3229.0,3228.5,43.24660996]
[1736470323655,0.76111,3229.0,3228.8,0.30972]
[1736470324043,0.4514,3229.0,3228.9,0.30971]
[1736470324248,3.6511,3229.5,3228.9,0.30971]
[1736470324249,0.30968,3229.3,3229.0,0.3097]
[1736470324455,3.2078,3229.5,3228.9,5.65440996]
[1736470324456,0.30967,3229.4,3229.2,2.75628996]
[1736470324656,0.30967,3229.4,3229.2,1.01346391]
[1736470324657,0.59210098,3229.3,3229.2,1.01346391]
[1736470324951,0.59210098,3229.3,3229.2,1.32314391]
[1736470325653,3.2078,3229.5,3229.2,1.01346391]
[1736470325856,3.2078,3229.5,3229.4,0.30967]
[1736470327268,3.6491,3229.9,3229.3,0.8953]
[1736470327569,0.30968,3229.3,3229.2,1.32314391]
[1736470328265,0.30967,3229.4,3229.2,1.01346391]
[1736470328468,3.6491,3229.9,3229.2,1.01346391]
[1736470328675,0.30963,3229.8,3229.2,1.01346391]
[1736470328962,0.30965,3229.6,3229.5,0.30965]
[1736470329473,0.30965,3229.6,3229.3,0.4362]
[1736470329666,0.30966,3229.5,3229.4,0.30966]
[1736470330072,0.30965,3229.6,3229.5,0.30965]
[1736470331371,0.30966,3229.5,3229.4,0.30966]
[1736470331575,0.30967,3229.4,3229.3,0.30967]
[1736470331866,0.30966,3229.5,3229.4,0.30966]
[1736470332261,3.6491,3229.9,3229.2,1.01346391]
[1736470332862,0.30966,3229.6,3229.4,0.30966]
[1736470333063,3.6491,3229.9,3229.2,1.01346391]
[1736470333565,0.30965,3229.6,3229.3,0.30968]
[1736470333766,0.30967,3229.5,3229.2,1.01346391]
[1736470333963,6.09570996,3229.9,3228.9,3.2078]
[1736470334272,0.30971,3228.9,3228.7,0.30972]
[1736470334467,3.5175,3229.1,3229.0,0.3097]
[1736470334666,3.2078,3229.1,3229.0,2.75630996]
[1736470334975,0.30967,3229.4,3229.3,0.30968]
[1736470335173,0.30968,3229.3,3229.2,0.30968]
[1736470335468,0.30967,3229.4,3229.3,0.30967]
[1736470335672,0.30968,3229.3,3229.2,0.30968]
[1736470335870,0.4433,3229.6,3229.2,0.4638]
[1736470336376,0.30966,3229.5,3229.4,0.30966]
[1736470336666,0.4433,3229.6,3229.3,0.30967]
[1736470336863,0.30966,3229.5,3229.4,0.30966]
[1736470337264,0.4433,3229.6,3229.2,0.4638]
[1736470337464,0.4433,3229.6,3229.3,2.44660996]
[1736470337661,0.4433,3229.6,3229.5,0.30966]
[1736470337960,0.75295,3229.6,3229.5,0.30966]
[1736470338365,0.4433,3229.6,3229.3,2.44660996]
[1736470338564,0.75295,3229.6,3229.5,0.30966]
[1736470338967,3.5174,3230.2,3229.4,3.2078]
[1736470339165,0.3096,3230.1,3230.0,0.3096]
[1736470339373,3.9822,3230.2,3230.0,0.454]
[1736470339571,3.6726,3230.2,3230.0,0.454]
[1736470339866,3.98219,3230.2,3230.1,0.3096]
[1736470340272,3.6726,3230.2,3230.1,0.3096]
[1736470340576,0.3096,3230.1,3230.0,0.76361]
[1736470340767,3.9822,3230.2,3230.1,0.3096]
[1736470341072,3.6726,3230.2,3230.1,0.3096]
[1736470341466,3.2078,3230.2,3230.1,0.3096]
[1736470341665,1.25448739,3231.1,3230.1,7.49660996]
[1736470341666,3.2078,3231.0,3230.1,7.49660996]
[1736470341969,2.32899513,3231.2,3231.1,0.3095]
[1736470342172,0.3094,3232.2,3231.8,0.30943]
[1736470342369,2.63838513,3232.3,3231.9,0.30943]
[1736470342574,0.3094,3232.2,3232.0,40.8]
[1736470342765,2.32899513,3232.3,3232.0,40.8]
[1736470342966,3.6619,3232.2,3231.4,3.2078]
[1736470343167,3.2078,3231.8,3231.4,3.2078]
[1736470343377,3.2078,3231.8,3231.5,40.8]
[1736470343580,0.30946,3231.6,3231.5,40.8]
[1736470343973,0.30946,3231.6,3231.3,0.30948]
[1736470344376,0.30945,3231.7,3231.4,40.8]
[1736470344677,0.30945,3231.7,3231.3,0.30948]
[1736470344971,0.30945,3231.7,3231.2,2.44660996]
[1736470344972,3.2078,3231.8,3231.2,43.24660996]
[1736470345179,0.437,3232.1,3231.9,0.30942]
[1736470345375,0.437,3232.1,3232.0,0.30942]
[1736470345874,0.437,3232.1,3231.8,5.65440996]
[1736470345875,0.4541,3232.2,3232.1,0.30941]
[1736470346472,3.2078,3232.6,3232.4,0.30937]
[1736470346677,3.2078,3232.6,3232.1,2.44660996]
[1736470346872,0.30935,3232.7,3232.2,0.3094]
[1736470347376,0.30936,3232.7,3232.3,0.30939]
[1736470347576,0.437,3232.9,3232.3,0.30939]
[1736470347776,0.437,3232.9,3232.2,6.14890552]
[1736470348185,0.437,3232.9,3232.2,3.2078]
[1736470348477,0.3094,3232.2,3231.8,6.45833552]
[1736470348783,3.2078,3232.6,3231.8,6.14890552]
[1736470348784,0.30941,3232.1,3231.8,6.14890552]
[1736470348985,0.30943,3231.9,3231.8,3.2078]
[1736470349275,0.3095,3231.2,3231.0,2.94110552]
[1736470349482,0.3095,3231.1,3231.0,2.94110552]
[1736470349676,0.3095,3231.1,3230.8,3.2078]
[1736470349973,0.77362,3231.7,3230.8,3.2078]
[1736470350182,0.30952,3231.0,3230.8,3.2078]
[1736470350382,0.30951,3231.1,3230.8,3.2078]
[1736470350586,0.30952,3230.9,3230.8,3.2078]
[1736470350778,0.30952,3231.0,3230.8,3.2078]
[1736470351173,0.30952,3231.0,3230.6,3.25064552]
[1736470351174,0.77372,3231.3,3230.4,3.2078]
[1736470351377,0.77372,3231.3,3230.4,3.51736]
[1736470351581,0.30954,3230.8,3230.5,0.30956]
[1736470352180,0.30952,3231.0,3230.6,0.30954]
[1736470352375,0.30952,3231.0,3230.7,0.30954]
[1736470352581,0.30953,3230.9,3230.6,0.30955]
[1736470353378,0.30954,3230.8,3230.5,41.10956]
[1736470353674,0.30954,3230.7,3230.4,3.2078]
[1736470353880,4.5098,3231.4,3230.4,3.2078]
[1736470354083,0.30956,3230.5,3230.2,3.25068552]
[1736470354284,0.30956,3230.6,3230.3,41.10957]
[1736470354482,0.30953,3230.8,3230.4,3.2078]
[1736470354681,0.30953,3230.8,3230.5,0.30956]
[1736470354886,0.9044,3230.9,3230.6,0.30955]
[1736470355089,0.30956,3230.5,3230.4,3.2078]
[1736470355286,0.30956,3230.6,3230.4,3.2078]
[1736470355479,0.30955,3230.7,3230.4,3.51737]
[1736470355675,0.9044,3230.9,3230.4,3.2078]
[1736470355676,0.30956,3230.6,3230.4,3.2078]
[1736470356085,0.30956,3230.6,3230.4,3.51737]
[1736470356390,0.9044,3230.9,3230.4,3.2078]
[1736470356586,0.30955,3230.7,3230.4,3.51737]
[1736470356881,0.30953,3230.8,3230.4,3.2078]
[1736470357183,3.2078,3231.0,3230.6,2.94110552]
[1736470357383,0.30952,3230.9,3230.6,2.94110552]
[1736470357587,0.30952,3230.9,3230.6,3.25065552]
[1736470357982,0.30952,3230.9,3230.6,2.94110552]
[1736470358486,3.2078,3231.0,3230.6,2.94110552]
[1736470358688,3.51731,3231.0,3230.6,2.94110552]
[1736470358887,0.30953,3230.9,3230.6,3.25065552]
[1736470359088,0.30953,3230.9,3230.7,0.30954]
[1736470359288,3.2078,3231.0,3230.8,0.30952]
[1736470359491,3.2078,3231.0,3230.6,2.94110552]
[1736470359788,0.30952,3230.9,3230.7,0.30954]
[1736470360289,3.51732,3231.0,3230.7,0.30954]
[1736470360488,3.2078,3231.0,3230.7,0.30954]
[1736470360691,0.30952,3230.9,3230.7,0.30954]
[1736470361193,3.2078,3231.0,3230.6,2.94110552]
[1736470361396,3.2078,3231.0,3230.9,0.30952]
[1736470361692,3.51732,3231.0,3230.7,0.30954]
[1736470361891,3.51732,3231.0,3230.6,2.94110552]
[1736470362194,3.51732,3231.0,3230.8,0.30953]
[1736470363092,0.30952,3231.0,3230.9,3.2078]
[1736470363293,0.30951,3231.1,3230.9,3.51732]
[1736470363488,0.3095,3231.2,3231.0,0.30951]
[1736470363696,0.8847,3231.3,3230.9,3.2078]
[1736470363993,0.8847,3231.3,3230.6,2.94110552]
[1736470364194,0.30952,3231.0,3230.8,0.30953]
[1736470364692,0.8847,3231.3,3230.6,2.94110552]
[1736470364898,0.30954,3230.7,3230.6,2.94110552]
[1736470365083,0.8847,3231.3,3230.6,2.94110552]
[1736470365587,0.8847,3231.3,3230.6,3.25065552]
[1736470365588,0.30953,3230.8,3230.6,3.25065552]
[1736470366492,0.30954,3230.7,3230.6,2.94110552]
[1736470366793,0.30953,3230.8,3230.6,3.25064552]
[1736470367193,0.8847,3231.3,3230.6,2.94110552]
[1736470367495,0.8847,3231.3,3230.9,0.30952]
[1736470367496,0.30952,3231.0,3230.9,0.30952]
[1736470368090,0.30953,3230.9,3230.8,0.30953]
[1736470368394,0.30953,3230.9,3230.7,0.30954]
[1736470368585,0.30953,3230.8,3230.7,0.30954]
[1736470368787,0.30953,3230.8,3230.6,3.25064552]
[1736470368993,0.30953,3230.9,3230.7,0.30954]
[1736470369394,0.30953,3230.9,3230.8,0.30953]
[1736470369896,0.8847,3231.3,3230.7,2.42957728]
[1736470370094,0.30951,3231.1,3230.7,2.42957728]
[1736470370391,0.8847,3231.3,3230.7,2.42957728]
[1736470370597,0.30953,3230.9,3230.8,0.30953]
[1736470370797,0.30952,3231.0,3230.9,0.30952]
[1736470371799,0.8847,3231.3,3230.9,0.30952]
[1736470371996,0.30951,3231.1,3231.0,0.30951]
[1736470372192,0.8847,3231.3,3230.7,2.42957728]
[1736470372392,0.8847,3231.3,3230.9,0.30951]
[1736470372597,0.30951,3231.1,3230.9,0.30951]
[1736470372797,0.8847,3231.3,3230.7,2.42957728]
[1736470372991,0.30951,3231.0,3230.9,0.30952]
[1736470373193,0.30951,3231.1,3230.9,0.30952]
[1736470373602,0.3095,3231.2,3231.0,0.3095]
[1736470373998,0.8847,3231.3,3231.0,3.2078]
[1736470374199,1.19419,3231.3,3231.2,0.30949]
[1736470375099,0.30948,3231.4,3231.0,5.63737728]
[1736470375297,3.98139,3231.9,3231.4,0.30947]
[1736470375298,0.30947,3231.5,3231.4,0.30947]
[1736470375494,0.30947,3231.5,3231.0,5.63737728]
[1736470375495,0.30948,3231.4,3231.3,0.30948]
[1736470375803,0.30948,3231.3,3231.2,0.30949]
[1736470376100,0.30948,3231.4,3231.3,0.30948]
[1736470376305,0.9057,3231.7,3231.0,3.2078]
[1736470376495,0.30951,3231.1,3231.0,0.30951]
[1736470377799,0.3095,3231.2,3231.1,0.3095]
[1736470378008,0.30951,3231.0,3230.9,2.73909728]
[1736470378403,0.30951,3231.1,3231.0,0.30951]
[1736470378705,0.30949,3231.3,3231.2,0.30949]
[1736470378905,3.2078,3231.5,3231.0,3.2078]
[1736470379099,0.3095,3231.2,3231.1,0.3095]
[1736470379292,0.3095,3231.1,3231.0,3.51731]
[1736470379498,0.3095,3231.2,3231.1,0.3095]
[1736470380398,3.2078,3231.5,3231.0,3.2078]
[1736470380600,0.3095,3231.2,3231.1,0.3095]
[1736470381305,0.3095,3231.1,3231.0,3.51731]
[1736470381603,0.77372,3231.3,3230.6,6.41391728]
[1736470381802,0.77379,3231.0,3230.3,40.8]
[1736470382005,0.77379,3231.0,3230.3,2.73914728]
[1736470382006,0.30957,3230.5,3230.3,2.73914728]
[1736470382303,0.30957,3230.5,3230.4,0.30957]
[1736470382605,0.30957,3230.5,3230.3,41.10957]
[1736470382800,0.30957,3230.5,3230.3,0.30957]
[1736470383204,0.30958,3230.3,3230.2,3.2078]
[1736470384811,0.30957,3230.5,3230.3,0.30957]
[1736470385012,0.30958,3230.4,3230.2,3.51738]
[1736470385301,3.2078,3230.6,3230.2,3.51738]
[1736470385508,0.30958,3230.4,3230.2,3.51738]
[1736470386411,0.30958,3230.3,3230.2,3.2078]
[1736470386617,0.77392,3230.5,3229.8,6.07807728]
[1736470386814,0.30962,3229.9,3229.8,6.07807728]
[1736470387204,0.30961,3230.0,3229.8,46.87807728]
[1736470387406,0.922,3230.2,3229.8,46.87807728]
[1736470387600,0.30962,3229.9,3229.8,46.87807728]
[1736470388613,0.922,3230.2,3229.8,46.87807728]
[1736470389009,0.30962,3229.9,3229.8,47.18770728]
[1736470389308,0.30962,3229.9,3229.8,3.6485]
[1736470389615,0.30968,3229.3,3229.2,3.2078]
[1736470389808,0.3097,3229.0,3228.8,3.2078]
[1736470390620,0.3097,3229.1,3228.9,0.30971]
[1736470391119,0.4452,3229.2,3229.1,0.30969]
[1736470391324,0.77607,3229.4,3229.2,0.30968]
[1736470391524,3.2078,3230.0,3229.2,3.2078]
[1736470391730,0.77393,3230.5,3229.6,3.2078]
[1736470391731,0.30964,3229.7,3229.6,3.2078]
[1736470391922,3.2078,3230.2,3229.6,3.2078]
[1736470392225,0.77018,3230.3,3230.1,2.73917728]
[1736470392422,0.30956,3230.5,3230.3,0.30958]
[1736470393129,0.4664,3230.6,3230.4,40.8]
[1736470393316,0.4606,3230.7,3230.4,40.8]
[1736470393826,0.30955,3230.6,3230.4,41.10957]
[1736470394822,0.4606,3230.7,3230.4,40.8]
[1736470395022,0.30956,3230.5,3230.4,40.8]
[1736470396125,0.4606,3230.7,3230.4,40.8]
[1736470396420,0.30956,3230.5,3230.4,40.8]
[1736470397524,0.30958,3230.3,3230.2,0.4445]
[1736470398315,3.2078,3230.3,3229.6,3.2078]
[1736470398522,0.30964,3229.7,3229.6,3.2078]
[1736470399829,1.3897,3230.2,3229.6,3.2078]
[1736470400029,4.5188,3230.8,3229.7,2.42957728]
[1736470400237,0.30959,3230.2,3230.0,3.5174]
[1736470401622,0.9257,3230.7,3230.2,0.30959]
[1736470401829,0.30958,3230.3,3230.1,0.74939]
[1736470402020,0.30958,3230.3,3230.2,0.475]
[1736470404326,3.35527728,3230.7,3230.0,3.2078]
[1736470404526,3.35527728,3230.7,3229.6,3.2078]
[1736470404527,0.30964,3229.7,3229.6,3.2078]
[1736470404726,0.30963,3229.8,3229.6,3.51744]
[1736470404924,0.30964,3229.7,3229.6,3.2078]
[1736470405124,1.23418,3230.6,3229.6,3.2078]
[1736470405333,0.30962,3229.9,3229.8,0.30962]
[1736470405630,0.30962,3230.0,3229.8,0.30962]
[1736470406029,0.30962,3229.9,3229.8,0.30962]
[1736470406222,1.23418,3230.6,3229.9,0.30961]
[1736470406431,0.30959,3230.2,3230.0,0.3096]
[1736470407229,0.4603,3230.6,3229.7,2.42957728]
[1736470407526,0.30963,3229.9,3229.7,0.30963]
[1736470407830,0.30963,3229.8,3229.7,0.30963]
[1736470408331,0.30962,3229.9,3229.7,0.30963]
[1736470408831,0.30962,3229.9,3229.8,0.30963]
[1736470409026,0.30962,3229.9,3229.6,3.2078]
[1736470409027,0.30961,3230.0,3229.6,3.2078]
[1736470409223,0.4603,3230.6,3229.7,2.42957728]
[1736470409727,0.3096,3230.1,3229.7,2.42957728]
[1736470409931,0.3096,3230.1,3230.0,0.30961]
[1736470410432,0.3096,3230.1,3229.7,2.42957728]
[1736470410727,0.4603,3230.6,3229.7,2.42957728]
[1736470410927,0.30961,3230.1,3229.9,0.30961]
[1736470411127,0.4603,3230.6,3229.7,2.42957728]
[1736470411333,0.4603,3230.6,3230.0,0.3096]
[1736470411529,0.30959,3230.2,3230.0,3.2078]
[1736470411824,0.4603,3230.6,3230.2,0.30958]
[1736470411825,0.30958,3230.3,3230.2,0.30958]
[1736470412831,0.30959,3230.2,3230.1,0.3096]
[1736470413539,1.3618,3230.7,3230.0,3.2078]
[1736470413731,1.3618,3230.7,3230.2,0.30958]
[1736470414037,0.30958,3230.3,3230.2,0.30958]
[1736470414243,0.30959,3230.2,3230.1,0.3096]
[1736470414536,1.3618,3230.7,3230.0,3.2078]
[1736470414733,0.30958,3230.3,3230.2,0.30959]
[1736470415031,1.3618,3230.7,3230.0,3.2078]
[1736470415230,0.30958,3230.4,3230.2,0.30958]
[1736470415429,0.30958,3230.4,3230.0,3.2078]
[1736470415633,0.30956,3230.5,3230.4,0.30957]
[1736470415829,0.30956,3230.5,3230.3,0.30957]
[1736470416030,1.3618,3230.7,3230.3,0.30957]
[1736470416334,0.30957,3230.4,3230.3,0.30957]
[1736470416830,1.3618,3230.7,3230.2,0.30959]
[1736470416831,0.30958,3230.3,3230.2,0.30959]
[1736470417141,1.3618,3230.7,3230.0,5.63737728]
[1736470417340,1.3618,3230.7,3230.4,3.2078]
[1736470417341,0.4691,3230.7,3230.4,3.2078]
[1736470417532,0.30955,3230.6,3230.5,0.75315]
[1736470417940,0.30955,3230.6,3230.5,41.55315]
[1736470418238,3.2078,3230.7,3229.9,3.2078]
[1736470418438,1.389,3230.5,3229.9,3.2078]
[1736470419134,0.30963,3229.8,3229.7,4.82709438]
[1736470419731,0.30963,3229.8,3229.6,41.10964]
[1736470419932,0.30963,3229.8,3229.6,40.8]
[1736470420138,0.30963,3229.8,3229.7,0.30964]
[1736470420341,3.2078,3230.2,3229.6,40.8]
[1736470420541,0.30961,3230.0,3229.9,0.30962]
[1736470420741,0.3096,3230.1,3229.9,0.30962]
[1736470421237,0.3096,3230.1,3229.8,3.2078]
[1736470421443,0.3096,3230.1,3229.9,0.30961]
[1736470422140,0.30961,3230.1,3229.9,0.30961]
[1736470422440,1.389,3230.5,3229.9,0.30961]
[1736470422641,0.30961,3230.0,3229.9,0.30961]
[1736470422841,1.389,3230.5,3229.8,3.2078]
[1736470422842,0.30957,3230.4,3230.0,0.3096]
[1736470423041,0.3096,3230.1,3229.9,0.30961]
[1736470423243,1.389,3230.5,3229.9,0.30962]
[1736470423644,0.3096,3230.1,3229.9,0.30962]
[1736470424343,0.30957,3230.4,3229.8,3.2078]
[1736470424539,1.389,3230.5,3229.9,0.4541]
[1736470424844,0.30957,3230.4,3230.2,0.30958]
[1736470425541,1.389,3230.5,3230.2,0.30958]
[1736470425749,0.30957,3230.4,3230.2,0.30958]
[1736470426046,1.389,3230.5,3230.2,0.30958]
[1736470426244,0.30959,3230.2,3230.1,0.30959]
[1736470427135,1.389,3230.5,3230.1,0.30959]
[1736470427447,0.30958,3230.3,3230.2,0.30959]
[1736470428135,0.30958,3230.3,3230.1,0.30959]
[1736470428337,1.389,3230.5,3229.9,0.4541]
[1736470428538,0.30961,3230.0,3229.8,3.51742]
[1736470429045,0.444,3229.9,3229.8,3.51742]
[1736470429439,0.9052,3229.9,3229.8,3.51742]
[1736470430246,0.9052,3229.9,3229.8,3.51743]
[1736470430247,1.21482,3229.9,3229.8,3.51743]
[1736470430441,1.21482,3229.9,3229.8,3.2078]
[1736470430748,1.21482,3229.9,3229.8,3.51743]
[1736470431148,0.9052,3229.9,3229.8,3.51743]
[1736470431351,0.444,3229.9,3229.8,3.51743]
[1736470431938,0.468,3230.4,3230.3,0.30958]
[1736470432343,0.30958,3230.3,3230.0,0.30961]
[1736470432545,0.30958,3230.3,3230.2,0.30959]
[1736470433144,0.468,3230.4,3229.9,0.4381]
[1736470433344,0.77758,3230.4,3230.1,0.3096]
[1736470433646,0.77758,3230.4,3230.3,0.30958]
[1736470434047,0.468,3230.4,3230.0,0.4464]
[1736470434252,0.77757,3230.4,3230.3,0.30958]
[1736470434548,0.77757,3230.4,3230.0,0.4464]
[1736470434549,0.30958,3230.3,3230.1,0.30959]
[1736470434748,0.30958,3230.3,3230.0,0.4464]
[1736470434950,0.30958,3230.3,3230.2,0.30959]
[1736470435956,0.30959,3230.2,3230.1,0.30959]
[1736470438843,0.468,3230.4,3229.8,3.2078]
[1736470439044,0.30962,3229.9,3229.8,3.2078]
[1736470440847,0.30964,3229.7,3229.6,0.30965]
[1736470441452,0.30965,3229.6,3229.5,0.30965]
[1736470441757,1.3903,3229.8,3229.6,0.30965]
[1736470441758,0.30964,3229.7,3229.6,0.30965]
[1736470443452,1.3903,3229.8,3229.4,3.2078]
[1736470443654,0.30965,3229.6,3229.5,0.30965]
[1736470444245,0.30966,3229.5,3229.4,3.2078]
[1736470446056,0.30965,3229.6,3229.5,0.30966]
[1736470446660,1.3903,3229.8,3229.4,3.2078]
[1736470446853,0.30966,3229.5,3229.4,3.51746]
[1736470447152,1.3903,3229.8,3229.4,3.2078]
[1736470447359,0.30965,3229.6,3229.5,0.30965]
[1736470448156,1.3903,3229.8,3229.2,41.2701]
[1736470448751,1.3903,3229.8,3229.2,40.8]
[1736470448953,0.30973,3228.7,3228.6,4.84308004]
[1736470449160,2.73930728,3228.7,3228.6,4.84308004]
[1736470449356,0.30975,3228.5,3228.4,4.84308004]
[1736470450554,0.30978,3228.3,3228.1,1.43671455]
[1736470450859,0.30978,3228.3,3228.1,42.23671455]
[1736470451358,0.30976,3228.5,3228.4,0.30976]
[1736470451555,0.30973,3228.8,3228.1,41.92692455]
[1736470451751,0.30973,3228.8,3228.6,0.30974]
[1736470451951,0.30974,3228.7,3228.5,0.30975]
[1736470453049,0.30973,3228.8,3228.5,0.30975]
[1736470453249,0.30974,3228.7,3228.5,0.30975]
[1736470453451,0.30974,3228.7,3228.6,0.30974]
[1736470453656,0.30974,3228.7,3228.5,0.30975]
[1736470454156,0.30974,3228.6,3228.5,0.30975]
[1736470454455,0.30978,3228.3,3228.1,42.23670455]
[1736470454657,0.30978,3228.3,3228.2,0.30978]
[1736470454852,0.30976,3228.4,3228.1,42.23671455]
[1736470455053,0.4365,3228.5,3228.1,41.92692455]
[1736470455361,0.30976,3228.4,3228.1,42.23671455]
[1736470456055,0.30978,3228.2,3228.1,41.46332455]
[1736470456365,0.30978,3228.2,3226.9,9.68616008]
[1736470456366,0.30979,3228.1,3227.8,0.30981]
[1736470456661,0.4709,3228.3,3227.8,40.8]
[1736470456851,0.30982,3227.8,3227.6,3.6831]
[1736470457263,0.4751,3228.0,3227.6,3.6831]
[1736470457756,0.4709,3228.3,3227.6,3.6831]
[1736470457757,0.4709,3228.3,3227.8,0.30981]
[1736470457963,0.946,3228.3,3227.6,3.6831]
[1736470458262,0.30982,3227.9,3227.6,3.99293]
[1736470458560,0.3098,3228.0,3227.7,0.30982]
[1736470459262,0.946,3228.3,3227.6,3.6831]
[1736470459465,0.30978,3228.2,3227.9,0.30981]
[1736470459761,0.30979,3228.1,3227.8,0.30981]
[1736470461472,0.30979,3228.2,3227.9,0.30981]
[1736470461876,0.30979,3228.1,3227.8,0.30982]
[1736470462375,0.3098,3228.0,3227.7,3.51763]
[1736470462870,0.3098,3228.0,3227.8,40.8]
[1736470463074,0.946,3228.3,3227.8,40.8]
[1736470463276,0.30981,3227.9,3227.8,40.8]
[1736470463671,2.42957728,3228.1,3227.7,3.2078]
[1736470463672,0.30982,3227.8,3227.7,3.2078]
[1736470463874,0.77192,3227.8,3227.7,3.2078]
[1736470464171,0.77192,3227.8,3227.7,44.0078]
[1736470464372,0.77192,3227.8,3227.7,3.2078]
[1736470464579,3.20149728,3227.8,3227.7,3.2078]
[1736470465774,0.77192,3227.8,3227.7,3.2078]
[1736470465976,0.4621,3227.8,3227.7,3.2078]
[1736470466180,0.77192,3227.8,3227.7,3.2078]
[1736470469976,3.20149728,3227.8,3227.7,3.2078]
[1736470471381,0.30987,3227.3,3227.2,40.8]
[1736470471574,0.30988,3227.2,3227.1,0.4527]
[1736470471777,0.3099,3227.0,3226.9,0.4318]
[1736470471978,0.30992,3226.8,3226.7,3.2078]
[1736470472180,2.73949728,3226.8,3226.7,3.2078]
[1736470473689,2.42957728,3226.8,3226.7,3.2078]
[1736470473886,2.73949728,3226.8,3226.7,3.2078]
[1736470474087,2.73949728,3226.8,3226.1,3.2078]
[1736470474088,0.30997,3226.2,3226.1,3.2078]
[1736470474382,0.31,3225.9,3225.7,0.4615]
[1736470474582,0.31001,3225.9,3225.7,0.4615]
[1736470474797,0.31003,3225.6,3225.5,3.2078]
[1736470474982,0.31002,3225.7,3225.5,3.2078]
[1736470475180,0.74262,3225.8,3225.5,3.2078]
[1736470476383,0.4326,3225.8,3225.5,3.51784]
[1736470476781,0.74262,3225.8,3225.5,3.2078]
[1736470477391,5.63737728,3226.0,3225.5,3.2078]
[1736470477686,5.94736728,3226.0,3225.7,0.31002]
[1736470479189,5.94736728,3226.0,3225.5,3.2078]
[1736470479190,5.63737728,3226.0,3225.5,3.2078]
[1736470479389,0.31,3225.9,3225.5,3.2078]
[1736470479688,0.31,3225.9,3225.6,0.31003]
[1736470479888,0.31,3225.9,3225.5,3.51784]
[1736470480286,5.63737728,3226.0,3225.5,3.2078]
[1736470480481,5.94737728,3226.0,3225.6,0.31002]
[1736470481090,5.63737728,3226.0,3225.8,0.31]
[1736470481286,5.94736728,3226.0,3225.6,0.31003]
[1736470481593,5.94736728,3226.0,3225.7,0.31002]
[1736470482284,5.63737728,3226.0,3225.5,3.2078]
[1736470482492,0.77472,3227.2,3226.0,0.30999]
[1736470482493,2.42957728,3226.3,3226.0,0.30999]
[1736470482984,2.42957728,3226.3,3226.1,0.4457]
[1736470483588,3.2078,3226.5,3226.2,0.30997]
[1736470483788,3.2078,3226.5,3226.1,0.4457]
[1736470483989,0.30996,3226.4,3226.1,0.4457]
[1736470484191,3.51775,3226.5,3226.2,40.8]
[1736470484685,3.2078,3226.5,3226.2,40.8]
[1736470484885,0.30996,3226.4,3226.2,40.8]
[1736470485090,3.2078,3226.5,3226.2,40.8]
[1736470485286,0.30996,3226.4,3226.1,0.4457]
[1736470485485,2.42957728,3226.3,3225.5,3.2078]
[1736470485789,0.31,3226.0,3225.6,40.8]
[1736470485989,0.30998,3226.2,3225.9,0.31]
[1736470486492,0.30998,3226.2,3225.6,40.8]
[1736470486493,0.4632,3226.3,3225.6,40.8]
[1736470486791,0.77317,3226.3,3226.0,0.30999]
[1736470489791,0.30997,3226.2,3225.9,0.31]
[1736470490287,0.30998,3226.2,3225.9,0.31]
[1736470491694,0.30998,3226.2,3225.8,0.31001]
[1736470491893,0.30998,3226.2,3225.9,0.31]
[1736470492195,0.31001,3225.9,3225.6,41.11003]
[1736470493003,0.31001,3225.9,3225.6,40.8]
[1736470493298,0.31,3226.0,3225.7,0.31002]
[1736470493594,0.4478,3226.1,3225.6,40.8]
[1736470493792,0.77317,3226.3,3226.0,0.30999]
[1736470494098,0.30997,3226.2,3226.1,0.4423]
[1736470496095,0.4632,3226.3,3225.6,40.8]
[1736470496096,2.89277728,3226.3,3225.6,40.8]
[1736470496289,0.31003,3225.6,3225.5,3.2078]
[1736470497094,0.4383,3225.9,3225.5,3.2078]
[1736470497291,0.4383,3225.9,3225.8,0.31001]
[1736470497599,0.4383,3225.9,3225.5,3.2078]
[1736470497600,0.31001,3225.8,3225.5,3.51784]
[1736470498293,0.4383,3225.9,3225.5,3.2078]
[1736470498499,0.31002,3225.8,3225.5,3.51784]
[1736470498694,0.31003,3225.7,3225.5,3.2078]
[1736470499599,0.31003,3225.7,3225.5,3.51784]
[1736470500500,0.4383,3225.9,3225.5,3.2078]
[1736470500893,0.30999,3226.1,3225.9,0.31]
[1736470501190,0.76489,3226.1,3225.9,0.31]
[1736470501700,0.31,3226.0,3225.7,0.31002]